[Event "St Kilda East and Caulfield Chess Club T3 2025 Under 1600 Mondays"]
[Site "St Kilda East, Australia"]
[Date "2025.08.18"]
[Round "4.5"]
[White "Fineberg, Leo"]
[Black "Karboulahanos, Kris"]
[Result "1/2-1/2"]
[TimeControl "60 minutes per player per game plus 10 secionds per move from move one"]
[WhiteElo "631"]
[BlackElo "1029"]

1. e4 {[%clk 01:00:07]} {[%emt 00:00:03]} e6 {[%clk 01:00:05]} {[%emt
00:00:06]} 2. d4 {[%clk 00:59:53]} {[%emt 00:00:23]} d5 {[%clk 01:00:10]}
{[%emt 00:00:06]} 3. Nc3 {[%clk 00:59:27]} {[%emt 00:00:36]} Bb4 {[%clk
01:00:02]} {[%emt 00:00:19]} 4. e5 {[%clk 00:58:53]} {[%emt 00:00:44]} h6
{[%clk 01:00:02]} {[%emt 00:00:10]} 5. Nf3 {[%clk 00:58:51]} {[%emt 00:00:12]}
Bxc3+ {[%clk 00:59:49]} {[%emt 00:00:23]} 6. bxc3 {[%clk 00:58:50]} {[%emt
00:00:10]} Ne7 {[%clk 00:59:58]} {[%emt 00:00:01]} 7. c4 {[%clk 00:58:34]}
{[%emt 00:00:26]} c6 {[%clk 00:59:56]} {[%emt 00:00:12]} 8. Be2 {[%clk
00:58:09]} {[%emt 00:00:35]} dxc4 {[%clk 00:59:37]} {[%emt 00:00:29]} 9. Bxc4
{[%clk 00:57:58]} {[%emt 00:00:20]} b5 {[%clk 00:59:38]} {[%emt 00:00:10]} 10.
Bb3 {[%clk 00:57:42]} {[%emt 00:00:26]} O-O {[%clk 00:59:19]} {[%emt 00:00:29]}
11. O-O {[%clk 00:57:46]} {[%emt 00:00:06]} Bb7 {[%clk 00:59:20]} {[%emt
00:00:09]} 12. Ba3 {[%clk 00:57:22]} {[%emt 00:00:33]} a5 {[%clk 00:59:19]}
{[%emt 00:00:12]} 13. c3 {[%clk 00:56:50]} {[%emt 00:00:41]} a4 {[%clk
00:58:53]} {[%emt 00:00:37]} 14. Bc2 {[%clk 00:56:26]} {[%emt 00:00:34]} Re8
{[%clk 00:58:51]} {[%emt 00:00:11]} 15. Rb1 {[%clk 00:56:18]} {[%emt 00:00:17]}
Nd5 {[%clk 00:58:04]} {[%emt 00:00:58]} 16. Qd2 {[%clk 00:54:30]} {[%emt
00:01:58]} Qd7 {[%clk 00:57:20]} {[%emt 00:00:54]} 17. Be4 {[%clk 00:52:09]}
{[%emt 00:02:30]} f5 {[%clk 00:57:17]} {[%emt 00:00:13]} 18. Bd3 {[%clk
00:50:13]} {[%emt 00:02:07]} Qf7 {[%clk 00:54:46]} {[%emt 00:02:41]} 19. Rfd1
{[%clk 00:50:05]} {[%emt 00:00:18]} Na6 {[%clk 00:54:10]} {[%emt 00:00:46]} 20.
Qb2 {[%clk 00:49:57]} {[%emt 00:00:17]} Nf4 {[%clk 00:53:41]} {[%emt 00:00:39]}
21. Be2 {[%clk 00:47:58]} {[%emt 00:02:09]} Qg6 {[%clk 00:52:50]} {[%emt
00:01:01]} 22. g3 {[%clk 00:47:38]} {[%emt 00:00:30]} Qg4 {[%clk 00:52:03]}
{[%emt 00:00:57]} 23. Re1 {[%clk 00:45:30]} {[%emt 00:02:18]} c5 {[%clk
00:51:32]} {[%emt 00:00:42]} 24. Nh4 {[%clk 00:44:31]} {[%emt 00:01:08]} Nh3+
{[%clk 00:50:46]} {[%emt 00:00:56]} 25. Kf1 {[%clk 00:43:37]} {[%emt 00:01:04]}
Qe4 {[%clk 00:50:39]} {[%emt 00:00:17]} 26. Bf3 {[%clk 00:42:04]} {[%emt
00:01:42]} Qd3+ {[%clk 00:50:17]} {[%emt 00:00:32]} 27. Be2 {[%clk 00:40:53]}
{[%emt 00:01:21]} Qe4 {[%clk 00:48:35]} {[%emt 00:01:53]} 28. Bf3 {[%clk
00:40:54]} {[%emt 00:00:09]} Qd3+ {[%clk 00:47:36]} {[%emt 00:01:09]} 29. Be2
{[%clk 00:40:53]} {[%emt 00:00:11]} Qe4 {[%clk 00:44:52]} {[%emt 00:02:55]} 30.
Bf3 {[%clk 00:39:43]} {[%emt 00:01:20]} Qd3+ {[%clk 00:44:52]} {[%emt
00:00:09]} 31. Be2 {[%clk 00:39:24]} {[%emt 00:00:28]} 1/2-1/2

[Event "St Kilda East and Caulfield Chess Club T3 2025 Under 1600 Mondays"]
[Site "St Kilda East, Australia"]
[Date "2025.08.18"]
[Round "4.7"]
[White "Yong, Leonard"]
[Black "Le, Oscar"]
[Result "1-0"]
[TimeControl "60 minutes per player per game plus 10 secionds per move from move one"]
[WhiteElo "449"]
[BlackElo "910"]

1. e4 {[%clk 01:00:08]} {[%emt 00:00:02]} e5 {[%clk 01:00:09]} {[%emt
00:00:02]} 2. Nf3 {[%clk 01:00:16]} {[%emt 00:00:03]} Nc6 {[%clk 01:00:14]}
{[%emt 00:00:05]} 3. Nc3 {[%clk 01:00:18]} {[%emt 00:00:08]} Nf6 {[%clk
01:00:20]} {[%emt 00:00:04]} 4. Bb5 {[%clk 01:00:08]} {[%emt 00:00:20]} a6
{[%clk 01:00:14]} {[%emt 00:00:16]} 5. Bxc6 {[%clk 00:59:55]} {[%emt 00:00:23]}
bxc6 {[%clk 01:00:04]} {[%emt 00:00:19]} 6. Nxe5 {[%clk 00:59:58]} {[%emt
00:00:07]} Bd6 {[%clk 01:00:05]} {[%emt 00:00:10]} 7. Nc4 {[%clk 00:59:30]}
{[%emt 00:00:39]} Qe7 {[%emt 00:02:53]} 8. d4 {[%clk 00:59:04]} Nxe4 {[%clk
00:57:21]} {[%emt 00:00:46]} 9. O-O {[%clk 00:59:02]} {[%emt 00:00:12]} O-O
{[%clk 00:56:11]} {[%emt 00:01:20]} 10. Re1 {[%clk 00:58:19]} {[%emt 00:00:52]}
Nxc3 {[%clk 00:54:49]} {[%emt 00:01:33]} 11. bxc3 {[%clk 00:56:15]} {[%emt
00:02:14]} Qh4 {[%clk 00:53:44]} {[%emt 00:01:15]} 12. Nxd6 {[%clk 00:55:51]}
{[%emt 00:00:34]} cxd6 {[%clk 00:53:48]} {[%emt 00:00:07]} 13. Ba3 {[%clk
00:54:46]} {[%emt 00:01:15]} Qf6 {[%clk 00:51:30]} {[%emt 00:02:28]} 14. Rb1
{[%clk 00:52:26]} {[%emt 00:02:30]} Ra7 {[%clk 00:48:27]} {[%emt 00:03:13]} 15.
Qe2 {[%clk 00:50:52]} {[%emt 00:01:43]} h6 {[%clk 00:46:28]} {[%emt 00:02:09]}
16. Rb8 {[%clk 00:50:21]} {[%emt 00:00:41]} Rb7 {[%clk 00:43:54]} {[%emt
00:02:43]} 17. Ra8 {[%clk 00:49:30]} {[%emt 00:01:01]} Rb5 {[%clk 00:43:52]}
{[%emt 00:00:12]} 18. Qe4 {[%clk 00:42:06]} {[%emt 00:07:34]} Ra5 {[%clk
00:41:28]} {[%emt 00:02:35]} 19. Bb4 {[%clk 00:38:43]} {[%emt 00:03:34]} Rxa2
{[%clk 00:41:22]} {[%emt 00:00:15]} 20. Rb8 {[%clk 00:35:57]} {[%emt 00:02:55]}
a5 {[%clk 00:41:24]} {[%emt 00:00:09]} 21. Ra8 {[%clk 00:35:31]} {[%emt
00:00:36]} c5 {[%clk 00:38:04]} {[%emt 00:03:30]} 22. Bxa5 {[%clk 00:34:50]}
{[%emt 00:00:51]} cxd4 {[%clk 00:38:08]} {[%emt 00:00:06]} 23. cxd4 {[%clk
00:34:38]} {[%emt 00:00:23]} Ra4 {[%clk 00:36:32]} {[%emt 00:01:45]} 24. c3
{[%clk 00:34:19]} {[%emt 00:00:29]} Qg5 {[%clk 00:36:30]} {[%emt 00:00:11]} 25.
Bd8 {[%clk 00:32:10]} {[%emt 00:02:19]} Rxd8 {[%clk 00:33:39]} {[%emt
00:03:02]} 26. Rxa4 {[%clk 00:31:41]} {[%emt 00:00:40]} Qb5 {[%clk 00:32:51]}
{[%emt 00:00:57]} 27. Rb4 {[%clk 00:31:05]} {[%emt 00:00:46]} Qa5 {[%clk
00:32:26]} {[%emt 00:00:35]} 28. Rb8 {[%clk 00:30:14]} {[%emt 00:01:01]} Qxc3
{[%clk 00:31:07]} {[%emt 00:01:29]} 29. Ra8 {[%clk 00:28:32]} {[%emt 00:01:52]}
g6 {[%clk 00:28:05]} {[%emt 00:03:12]} 30. h3 {[%clk 00:25:51]} {[%emt
00:02:51]} Kg7 {[%clk 00:26:21]} {[%emt 00:01:55]} 31. Ra2 {[%clk 00:24:35]}
{[%emt 00:01:24]} Qb3 {[%clk 00:25:16]} {[%emt 00:01:16]} 32. Rd2 {[%clk
00:23:25]} {[%emt 00:01:19]} Bb7 {[%clk 00:24:55]} {[%emt 00:00:33]} 33. d5
{[%clk 00:21:55]} {[%emt 00:01:39]} Rc8 {[%clk 00:23:18]} {[%emt 00:01:46]} 34.
Qf4 {[%clk 00:21:19]} {[%emt 00:00:47]} Bxd5 {[%clk 00:22:45]} {[%emt
00:00:44]} 35. Qd4+ {[%clk 00:21:05]} {[%emt 00:00:23]} Kg8 {[%clk 00:21:38]}
{[%emt 00:01:17]} 36. Qf6 {[%clk 00:20:39]} {[%emt 00:00:36]} Be6 {[%clk
00:21:14]} {[%emt 00:00:34]} 37. Rd4 {[%clk 00:19:09]} {[%emt 00:01:40]} Qc3
{[%clk 00:20:58]} {[%emt 00:00:26]} 38. Re3 {[%clk 00:17:28]} {[%emt 00:01:51]}
Qa1+ {[%clk 00:20:48]} {[%emt 00:00:20]} 39. Kh2 {[%clk 00:17:26]} {[%emt
00:00:11]} Rc2 {[%clk 00:20:37]} {[%emt 00:00:21]} 40. Rf4 {[%clk 00:16:48]}
{[%emt 00:00:47]} Qc1 {[%clk 00:20:18]} {[%emt 00:00:30]} 41. Rxe6 {[%clk
00:16:37]} {[%emt 00:00:20]} Qxf4+ {[%clk 00:20:12]} {[%emt 00:00:17]} 42. Qxf4
{[%clk 00:16:35]} {[%emt 00:00:12]} dxe6 {[%clk 00:20:19]} {[%emt 00:00:05]} 43.
Qxd6 {[%clk 00:16:30]} {[%emt 00:00:14]} Rxf2 {[%emt 00:00:28]} 44. Qd8+ {[%clk
00:16:25]} Kg7 {[%clk 00:20:19]} {[%emt 00:00:07]} 45. Qd4+ {[%clk 00:16:30]}
{[%emt 00:00:05]} Rf6 {[%clk 00:20:22]} {[%emt 00:00:08]} 46. g4 {[%clk
00:16:26]} {[%emt 00:00:13]} g5 {[%clk 00:19:15]} {[%emt 00:01:17]} 47. Qe5
{[%clk 00:16:19]} {[%emt 00:00:18]} Kg6 {[%clk 00:19:16]} {[%emt 00:00:09]} 48.
Qe4+ {[%clk 00:16:02]} {[%emt 00:00:27]} Kg7 {[%clk 00:19:14]} {[%emt
00:00:11]} 49. Kg3 {[%clk 00:15:56]} {[%emt 00:00:16]} Kf8 {[%clk 00:19:12]}
{[%emt 00:00:12]} 50. Qe5 {[%clk 00:15:39]} {[%emt 00:00:27]} Kg7 {[%clk
00:19:17]} {[%emt 00:00:05]} 51. h4 {[%clk 00:15:34]} {[%emt 00:00:15]} gxh4+
{[%clk 00:18:30]} {[%emt 00:00:57]} 52. Kxh4 {[%clk 00:15:38]} {[%emt
00:00:06]} Kg6 {[%clk 00:18:28]} {[%emt 00:00:12]} 53. Qh5+ {[%clk 00:15:27]}
{[%emt 00:00:21]} Kg7 {[%clk 00:18:34]} {[%emt 00:00:04]} 54. g5 {[%clk
00:15:21]} {[%emt 00:00:17]} hxg5+ {[%clk 00:18:32]} {[%emt 00:00:12]} 55.
Qxg5+ {[%clk 00:15:21]} {[%emt 00:00:09]} Rg6 {[%clk 00:18:37]} {[%emt
00:00:06]} 56. Qe5+ {[%clk 00:15:15]} {[%emt 00:00:16]} Rf6 {[%clk 00:18:30]}
{[%emt 00:00:17]} 57. Kg5 {[%clk 00:15:19]} {[%emt 00:00:06]} Kf8 {[%clk
00:18:33]} {[%emt 00:00:21]} 58. Qxf6 {[%clk 00:15:28]} {[%emt 00:00:07]} Kg8
{[%clk 00:18:36]} {[%emt 00:00:07]} 59. Kh6 {[%clk 00:15:30]} {[%emt 00:00:07]}
e5 {[%clk 00:18:40]} {[%emt 00:00:07]} 60. Qg7# {[%clk 00:15:32]} {[%emt
00:00:08]} 1-0

[Event "St Kilda East and Caulfield Chess Club T3 2025 Under 1600 Mondays"]
[Site "St Kilda East, Australia"]
[Date "2025.08.18"]
[Round "4.3"]
[White "Beckman, John"]
[Black "Nakada, Kazu"]
[Result "1/2-1/2"]
[TimeControl "60 minutes per player per game plus 10 secionds per move from move one"]
[WhiteElo "1201"]
[BlackElo "605"]

1. e4 {[%clk 01:00:00]} {[%emt 00:01:09]} e5 {[%clk 00:57:49]} {[%emt
00:03:04]} 2. Bc4 {[%clk 00:59:29]} {[%emt 00:00:39]} Nf6 {[%clk 00:57:41]}
{[%emt 00:00:19]} 3. d3 {[%clk 00:59:07]} {[%emt 00:00:31]} Bc5 {[%clk
00:57:37]} {[%emt 00:00:14]} 4. f4 {[%clk 00:58:13]} {[%emt 00:01:03]} d6
{[%clk 00:57:20]} {[%emt 00:00:28]} 5. f5 {[%emt 00:01:17]} d5 {[%clk
00:56:47]} {[%emt 00:00:41]} 6. exd5 {[%clk 00:55:48]} {[%emt 00:01:30]} Nxd5
{[%clk 00:56:46]} {[%emt 00:00:11]} 7. Qf3 {[%clk 00:55:01]} {[%emt 00:00:56]}
Nb6 {[%clk 00:55:40]} {[%emt 00:01:17]} 8. Bb3 {[%emt 00:01:40]} a5 {[%clk
00:55:00]} 9. a3 {[%clk 00:53:52]} {[%emt 00:00:40]} Nc6 {[%clk 00:55:05]}
{[%emt 00:00:05]} 10. c3 {[%clk 00:53:18]} {[%emt 00:00:44]} Qf6 {[%clk
00:54:11]} {[%emt 00:01:03]} 11. g4 {[%clk 00:49:25]} {[%emt 00:04:03]} Bd7
{[%clk 00:52:22]} {[%emt 00:02:00]} 12. Nd2 {[%clk 00:47:08]} {[%emt 00:02:27]}
Qh4+ {[%clk 00:49:12]} {[%emt 00:03:21]} 13. Qg3 {[%clk 00:45:47]} {[%emt
00:01:30]} Qxg3+ {[%clk 00:49:13]} {[%emt 00:00:10]} 14. hxg3 {[%clk 00:45:41]}
{[%emt 00:00:15]} h5 {[%clk 00:49:09]} {[%emt 00:00:14]} 15. Ne4 {[%clk
00:45:14]} {[%emt 00:00:36]} Bxg1 {[%clk 00:49:07]} {[%emt 00:00:12]} 16. Rxg1
{[%clk 00:44:21]} {[%emt 00:01:03]} hxg4 {[%clk 00:49:10]} {[%emt 00:00:07]} 17.
f6 {[%clk 00:43:47]} {[%emt 00:00:44]} g6 {[%clk 00:47:03]} {[%emt 00:02:18]}
18. Ng5 {[%clk 00:40:50]} {[%emt 00:03:07]} Rf8 {[%clk 00:46:25]} {[%emt
00:00:47]} 19. Be3 {[%clk 00:40:04]} {[%emt 00:00:54]} a4 {[%clk 00:45:10]}
{[%emt 00:01:27]} 20. Ba2 {[%clk 00:37:03]} {[%emt 00:03:12]} Ra5 {[%clk
00:45:02]} {[%emt 00:00:18]} 21. b4 {[%clk 00:34:31]} {[%emt 00:02:41]} axb3
{[%clk 00:44:45]} {[%emt 00:00:28]} 22. Bxb3 {[%clk 00:34:19]} {[%emt
00:00:22]} Bf5 {[%clk 00:44:29]} {[%emt 00:00:26]} 23. Ne4 {[%clk 00:30:46]}
{[%emt 00:03:43]} Nd5 {[%clk 00:43:08]} {[%emt 00:01:31]} 24. Bc5 {[%clk
00:27:23]} {[%emt 00:03:33]} Rh8 {[%clk 00:42:20]} {[%emt 00:00:59]} 25. Bxd5
{[%clk 00:27:13]} {[%emt 00:00:20]} Bxe4 {[%clk 00:42:23]} {[%emt 00:00:06]} 26.
Bxc6+ {[%clk 00:23:18]} {[%emt 00:04:05]} Bxc6 {[%clk 00:42:26]} {[%emt
00:00:07]} 27. Bb4 {[%clk 00:22:08]} {[%emt 00:01:20]} Rd5 {[%clk 00:42:22]}
{[%emt 00:00:13]} 28. O-O-O {[%clk 00:21:17]} {[%emt 00:01:01]} Rh2 {[%clk
00:42:13]} {[%emt 00:00:19]} 29. Rd2 {[%clk 00:21:12]} {[%emt 00:00:13]} Rxd2
{[%clk 00:41:27]} {[%emt 00:00:57]} 30. Kxd2 {[%clk 00:21:17]} {[%emt
00:00:03]} e4 {[%clk 00:41:27]} {[%emt 00:00:12]} 31. d4 {[%clk 00:20:38]}
{[%emt 00:00:48]} Rf5 {[%clk 00:40:38]} {[%emt 00:01:01]} 32. Be7 {[%clk
00:19:23]} {[%emt 00:01:23]} Rf2+ {[%clk 00:40:33]} {[%emt 00:00:16]} 33. Ke3
{[%clk 00:17:35]} {[%emt 00:01:57]} Rf3+ {[%clk 00:40:33]} {[%emt 00:00:10]} 34.
Kd2 {[%clk 00:17:40]} {[%emt 00:00:05]} e3+ {[%clk 00:40:31]} {[%emt 00:00:12]}
35. Kd3 {[%clk 00:17:27]} {[%emt 00:00:23]} Bb5+ {[%clk 00:40:12]} {[%emt
00:00:29]} 36. c4 {[%clk 00:16:48]} {[%emt 00:00:48]} e2+ {[%clk 00:39:22]}
{[%emt 00:00:59]} 37. Kxe2 {[%clk 00:13:54]} {[%emt 00:03:04]} Bxc4+ {[%clk
00:39:23]} {[%emt 00:00:10]} 38. Ke1 {[%clk 00:13:22]} {[%emt 00:00:41]} Rd3
{[%clk 00:38:50]} {[%emt 00:00:45]} 39. Rh1 {[%clk 00:12:53]} {[%emt 00:00:38]}
Rxg3 {[%clk 00:38:51]} {[%emt 00:00:09]} 40. Rh8+ {[%clk 00:12:50]} {[%emt
00:00:13]} Kd7 {[%clk 00:38:54]} {[%emt 00:00:08]} 41. Rd8+ {[%clk 00:12:15]}
{[%emt 00:00:44]} Kc6 {[%clk 00:38:45]} {[%emt 00:00:20]} 42. Kf2 {[%clk
00:10:49]} {[%emt 00:01:35]} Rf3+ {[%clk 00:38:41]} {[%emt 00:00:15]} 43. Kg2
{[%clk 00:10:26]} {[%emt 00:00:32]} Bf1+ {[%clk 00:38:27]} {[%emt 00:00:25]} 44.
Kg1 {[%clk 00:09:59]} {[%emt 00:00:36]} g3 {[%clk 00:38:22]} {[%emt 00:00:15]}
45. d5+ {[%emt 00:00:42]} Kb6 {[%clk 00:38:14]} {[%emt 00:00:14]} 46. d6 {[%clk
00:09:02]} {[%emt 00:00:38]} g2 {[%clk 00:37:47]} {[%emt 00:00:37]} 47. dxc7
{[%clk 00:07:51]} {[%emt 00:01:22]} Kxc7 {[%clk 00:37:40]} {[%emt 00:00:17]} 48.
Rh8 {[%clk 00:06:57]} {[%emt 00:01:03]} g5 {[%clk 00:36:51]} {[%emt 00:01:00]}
49. Rg8 {[%clk 00:05:53]} {[%emt 00:01:14]} Rg3 {[%clk 00:36:35]} {[%emt
00:00:26]} 50. Rg7 {[%clk 00:05:43]} {[%emt 00:00:20]} Kc6 {[%clk 00:36:19]}
{[%emt 00:00:26]} 51. Bb4 {[%emt 00:00:54]} Bc4 {[%clk 00:34:58]} {[%emt
00:01:28]} 52. Rh7 {[%clk 00:04:14]} {[%emt 00:00:58]} Bd5 {[%clk 00:34:44]}
{[%emt 00:00:25]} 53. Rh5 {[%clk 00:04:10]} {[%emt 00:00:13]} g4 {[%clk
00:33:47]} {[%emt 00:01:07]} 54. Rh2 {[%clk 00:03:11]} {[%emt 00:01:07]} Rh3
{[%clk 00:32:46]} {[%emt 00:01:13]} 55. Rxh3 {[%clk 00:02:52]} {[%emt
00:00:28]} gxh3 {[%clk 00:32:44]} {[%emt 00:00:12]} 56. Be1 {[%clk 00:02:32]}
{[%emt 00:00:30]} Kb5 {[%clk 00:32:37]} {[%emt 00:00:18]} 57. Kh2 {[%clk
00:02:16]} {[%emt 00:00:24]} Kc4 {[%clk 00:32:32]} {[%emt 00:00:18]} 58. Bf2
{[%clk 00:02:16]} {[%emt 00:00:08]} Be6 {[%clk 00:32:35]} {[%emt 00:00:09]} 59.
Be1 {[%clk 00:02:05]} {[%emt 00:00:19]} Kd3 {[%clk 00:32:37]} {[%emt 00:00:09]}
60. Bb4 {[%clk 00:02:09]} {[%emt 00:00:06]} Ke2 {[%clk 00:32:41]} {[%emt
00:00:07]} 61. Bc5 {[%clk 00:02:11]} {[%emt 00:00:09]} Kf3 {[%clk 00:32:06]}
{[%emt 00:00:45]} 62. a4 {[%clk 00:02:15]} {[%emt 00:00:06]} Ke4 {[%clk
00:32:13]} {[%emt 00:00:03]} 63. a5 {[%clk 00:02:18]} {[%emt 00:00:06]} Kf5
{[%clk 00:32:18]} {[%emt 00:00:05]} 64. Be7 {[%clk 00:02:25]} {[%emt 00:00:03]}
Ke4 {[%clk 00:31:53]} {[%emt 00:00:36]} 65. Bd8 {[%clk 00:02:29]} {[%emt
00:00:06]} Bc4 {[%clk 00:24:02]} {[%emt 00:08:02]} 66. Be7 {[%clk 00:01:55]}
{[%emt 00:00:43]} Kf3 {[%clk 00:23:16]} {[%emt 00:00:55]} 67. Bc5 {[%clk
00:02:00]} {[%emt 00:00:05]} 1/2-1/2

[Event "St Kilda East and Caulfield Chess Club T3 2025 Under 1600 Mondays"]
[Site "St Kilda East, Australia"]
[Date "2025.08.18"]
[Round "4.2"]
[White "Wang, Noah"]
[Black "Hennessy, Rob"]
[Result "1-0"]
[TimeControl "60 minutes per player per game plus 10 secionds per move from move one"]
[WhiteElo "913"]
[BlackElo "979"]

1. e4 {[%clk 01:00:08]} {[%emt 00:00:02]} e5 {[%clk 00:59:53]} {[%emt
00:00:17]} 2. Nf3 {[%clk 01:00:13]} {[%emt 00:00:05]} Nc6 {[%clk 00:59:39]}
{[%emt 00:00:25]} 3. d4 {[%clk 01:00:17]} {[%emt 00:00:06]} exd4 {[%clk
00:59:15]} {[%emt 00:00:34]} 4. Nxd4 {[%clk 01:00:23]} {[%emt 00:00:04]} d5
{[%clk 00:57:41]} {[%emt 00:01:43]} 5. Bb5 {[%clk 00:57:39]} {[%emt 00:02:54]}
Nge7 {[%clk 00:57:07]} {[%emt 00:00:45]} 6. exd5 {[%clk 00:55:59]} {[%emt
00:01:51]} Qxd5 {[%clk 00:56:40]} {[%emt 00:00:36]} 7. O-O {[%clk 00:55:07]}
{[%emt 00:01:01]} Bd7 {[%clk 00:55:36]} {[%emt 00:01:14]} 8. Nxc6 {[%clk
00:53:38]} {[%emt 00:01:40]} Qxd1 {[%clk 00:52:08]} {[%emt 00:03:38]} 9. Rxd1
{[%clk 00:53:44]} {[%emt 00:00:04]} Bxc6 {[%clk 00:51:43]} {[%emt 00:00:35]} 10.
Nc3 {[%clk 00:52:05]} {[%emt 00:01:49]} a6 {[%clk 00:51:26]} {[%emt 00:00:27]}
11. Bxc6+ {[%clk 00:52:00]} {[%emt 00:00:15]} Nxc6 {[%clk 00:51:17]} {[%emt
00:00:18]} 12. Bf4 {[%clk 00:51:25]} {[%emt 00:00:44]} Nb4 {[%clk 00:47:29]}
{[%emt 00:03:59]} 13. Nd5 {[%clk 00:49:25]} {[%emt 00:02:10]} Nxd5 {[%clk
00:47:05]} {[%emt 00:00:35]} 14. Rxd5 {[%clk 00:49:27]} {[%emt 00:00:08]} c6
{[%clk 00:45:54]} {[%emt 00:01:21]} 15. Re1+ {[%clk 00:48:57]} {[%emt
00:00:40]} Be7 {[%clk 00:45:21]} {[%emt 00:00:42]} 16. Rde5 {[%clk 00:49:02]}
{[%emt 00:00:06]} O-O-O {[%clk 00:42:32]} {[%emt 00:02:59]} 17. Rxe7 {[%clk
00:48:50]} {[%emt 00:00:22]} Rd7 {[%clk 00:39:51]} {[%emt 00:02:51]} 18. Re8+
{[%clk 00:48:39]} {[%emt 00:00:21]} Rd8 {[%clk 00:39:16]} {[%emt 00:00:44]} 19.
Rxh8 {[%clk 00:47:47]} {[%emt 00:01:02]} Rxh8 {[%clk 00:39:11]} {[%emt
00:00:15]} 20. f3 {[%clk 00:47:37]} {[%emt 00:00:20]} Rd8 {[%clk 00:39:01]}
{[%emt 00:00:20]} 21. Re7 {[%clk 00:47:22]} {[%emt 00:00:25]} Rd7 {[%clk
00:36:51]} {[%emt 00:02:20]} 22. Re8+ {[%clk 00:46:54]} {[%emt 00:00:38]} Rd8
{[%clk 00:36:43]} {[%emt 00:00:19]} 23. Rxd8+ {[%clk 00:46:57]} {[%emt
00:00:07]} Kxd8 {[%clk 00:36:45]} {[%emt 00:00:07]} 24. Kf2 {[%clk 00:47:00]}
{[%emt 00:00:07]} h6 {[%clk 00:36:29]} {[%emt 00:00:26]} 25. Ke3 {[%clk
00:47:04]} {[%emt 00:00:06]} g5 {[%clk 00:36:27]} {[%emt 00:00:13]} 26. Be5
{[%clk 00:47:06]} {[%emt 00:00:09]} Ke7 {[%clk 00:36:14]} {[%emt 00:00:23]} 27.
Kd4 {[%clk 00:46:59]} {[%emt 00:00:17]} f6 {[%clk 00:36:06]} {[%emt 00:00:17]}
28. Bg3 {[%clk 00:46:57]} {[%emt 00:00:12]} f5 {[%clk 00:35:50]} {[%emt
00:00:26]} 29. Kc5 {[%clk 00:46:54]} {[%emt 00:00:12]} f4 {[%clk 00:35:18]}
{[%emt 00:00:43]} 30. Bf2 {[%clk 00:46:54]} {[%emt 00:00:10]} Kd7 {[%clk
00:35:17]} {[%emt 00:00:10]} 31. Bd4 {[%clk 00:46:51]} {[%emt 00:00:13]} Kc8
{[%clk 00:34:21]} {[%emt 00:01:06]} 32. Bg7 {[%clk 00:46:54]} {[%emt 00:00:07]}
h5 {[%clk 00:34:15]} {[%emt 00:00:16]} 33. h3 {[%clk 00:46:54]} {[%emt
00:00:09]} Kc7 {[%clk 00:33:58]} {[%emt 00:00:26]} 34. Bh6 {[%clk 00:46:44]}
{[%emt 00:00:21]} b6+ {[%clk 00:33:46]} {[%emt 00:00:22]} 35. Kc4 {[%clk
00:46:49]} {[%emt 00:00:05]} b5+ {[%clk 00:33:15]} {[%emt 00:00:41]} 36. Kc5
{[%clk 00:46:15]} {[%emt 00:00:44]} g4 {[%clk 00:32:40]} {[%emt 00:00:44]} 37.
fxg4 {[%clk 00:46:21]} {[%emt 00:00:04]} hxg4 {[%clk 00:32:40]} {[%emt
00:00:10]} 38. hxg4 {[%clk 00:46:12]} {[%emt 00:00:14]} Kd6+ {[%emt 00:00:40]}
39. Kd5+ Kxd5 1-0